[Event "SS Manhem Chess Week 2019 Goteborg Open"]
[Site "Molnlycke kulturhus, Biblioteksgatan 2, Molnlycke, Sweden"]
[Date "2019.08.16"]
[Round "4.5"]
[White "Carlsson, Ludvig"]
[Black "Ask, Josef"]
[Result "1-0"]
[TimeControl "15 minutes + 5 seconds per move from move one (Round 1 - 4) / 90 minutes + 30 seconds per move from move one (Round 5 - 8)"]
[WhiteTitle "CM"]
[BlackTitle "FM"]
[WhiteFideId "1727010"]
[BlackFideId "1704583"]
[WhiteElo "2234"]
[BlackElo "2136"]

1. d4 {[%clk 00:15:08]} {[%emt 00:00:03]} Nf6 {[%clk 00:15:09]} 2. c4 {[%clk
00:15:09]} {[%emt 00:00:03]} g6 {[%clk 00:15:13]} {[%emt 00:00:01]} 3. Nc3
{[%clk 00:15:11]} {[%emt 00:00:04]} Bg7 {[%clk 00:15:16]} {[%emt 00:00:01]} 4.
e4 {[%clk 00:15:13]} {[%emt 00:00:02]} d6 {[%clk 00:15:20]} {[%emt 00:00:02]} 5.
Be2 {[%clk 00:15:15]} {[%emt 00:00:02]} O-O {[%clk 00:15:21]} {[%emt 00:00:04]}
6. Nf3 {[%clk 00:15:19]} {[%emt 00:00:02]} e5 {[%clk 00:15:20]} {[%emt
00:00:06]} 7. dxe5 {[%clk 00:15:21]} {[%emt 00:00:02]} dxe5 {[%clk 00:15:23]}
{[%emt 00:00:03]} 8. Qxd8 {[%clk 00:15:25]} {[%emt 00:00:02]} Rxd8 {[%clk
00:15:27]} {[%emt 00:00:02]} 9. Bg5 {[%clk 00:15:28]} {[%emt 00:00:01]} Rf8
{[%clk 00:15:14]} {[%emt 00:00:17]} 10. Nd5 {[%clk 00:15:20]} {[%emt 00:00:13]}
Nxd5 {[%clk 00:15:18]} {[%emt 00:00:02]} 11. cxd5 {[%clk 00:15:23]} {[%emt
00:00:02]} c6 {[%clk 00:15:21]} {[%emt 00:00:02]} 12. O-O {[%clk 00:15:24]}
{[%emt 00:00:04]} cxd5 {[%clk 00:15:18]} {[%emt 00:00:08]} 13. exd5 {[%clk
00:15:27]} {[%emt 00:00:01]} e4 {[%clk 00:15:20]} {[%emt 00:00:03]} 14. Nd2
{[%clk 00:15:31]} {[%emt 00:00:02]} f5 {[%clk 00:14:53]} {[%emt 00:00:32]} 15.
Rac1 {[%clk 00:15:34]} {[%emt 00:00:02]} Bxb2 {[%clk 00:14:40]} {[%emt
00:00:19]} 16. Rc7 {[%clk 00:15:07]} {[%emt 00:00:32]} Be5 {[%clk 00:14:28]}
{[%emt 00:00:17]} 17. d6 {[%clk 00:15:08]} {[%emt 00:00:04]} Nd7 {[%clk
00:14:08]} {[%emt 00:00:25]} 18. Bc4+ {[%clk 00:14:18]} {[%emt 00:00:55]} Kh8
{[%clk 00:14:03]} {[%emt 00:00:10]} 19. Be7 {[%clk 00:14:14]} {[%emt 00:00:09]}
Kg7 {[%clk 00:11:52]} {[%emt 00:02:16]} 20. Be6 {[%clk 00:10:59]} {[%emt
00:03:20]} Nf6 {[%clk 00:11:29]} {[%emt 00:00:29]} 21. Bxf8+ {[%clk 00:10:38]}
{[%emt 00:00:25]} Kxf8 {[%clk 00:11:33]} {[%emt 00:00:01]} 22. Rxc8+ {[%clk
00:10:35]} {[%emt 00:00:08]} Rxc8 {[%clk 00:11:36]} {[%emt 00:00:02]} 23. Bxc8
{[%clk 00:10:39]} {[%emt 00:00:02]} Bxd6 {[%clk 00:11:38]} {[%emt 00:00:03]} 24.
Bxb7 {[%clk 00:10:38]} {[%emt 00:00:06]} Ng4 {[%clk 00:11:23]} {[%emt
00:00:20]} 25. h3 {[%clk 00:10:30]} {[%emt 00:00:12]} Ne5 {[%clk 00:11:27]}
{[%emt 00:00:02]} 26. Rd1 {[%clk 00:10:08]} {[%emt 00:00:27]} Bc5 {[%clk
00:11:08]} {[%emt 00:00:24]} 27. Nxe4 {[%clk 00:10:11]} {[%emt 00:00:02]} fxe4
{[%clk 00:10:59]} {[%emt 00:00:14]} 28. Bxe4 {[%clk 00:09:56]} {[%emt
00:00:19]} Bb6 {[%clk 00:11:02]} {[%emt 00:00:03]} 29. Rd5 {[%clk 00:09:35]}
{[%emt 00:00:26]} Nf7 {[%clk 00:10:13]} {[%emt 00:00:54]} 30. Rd7 {[%clk
00:09:31]} {[%emt 00:00:09]} Ke8 {[%clk 00:09:56]} {[%emt 00:00:22]} 31. Bc6
{[%clk 00:09:30]} {[%emt 00:00:06]} Ne5 {[%clk 00:09:57]} {[%emt 00:00:04]} 32.
Rxa7+ {[%clk 00:09:28]} {[%emt 00:00:06]} Nxc6 {[%clk 00:09:58]} {[%emt
00:00:04]} 33. Ra6 {[%clk 00:09:31]} {[%emt 00:00:01]} Bd4 {[%clk 00:09:20]}
{[%emt 00:00:43]} 34. Rxc6 {[%clk 00:09:33]} {[%emt 00:00:03]} Kd7 {[%clk
00:09:24]} {[%emt 00:00:01]} 35. Rc4 {[%clk 00:09:34]} {[%emt 00:00:04]} Bb6
{[%clk 00:09:24]} {[%emt 00:00:05]} 36. Kf1 {[%clk 00:09:37]} {[%emt 00:00:02]}
Kd6 {[%clk 00:09:28]} {[%emt 00:00:02]} 37. f3 {[%clk 00:09:40]} {[%emt
00:00:01]} Kd5 {[%clk 00:09:31]} {[%emt 00:00:02]} 38. Re4 {[%clk 00:09:43]}
{[%emt 00:00:01]} Bc5 {[%clk 00:09:31]} {[%emt 00:00:06]} 39. Ke2 {[%clk
00:09:45]} {[%emt 00:00:03]} Kd6 {[%clk 00:09:24]} {[%emt 00:00:12]} 40. Kd3
{[%clk 00:09:48]} {[%emt 00:00:02]} Kd5 {[%clk 00:09:29]} 41. a4 {[%clk
00:09:49]} {[%emt 00:00:05]} Bb6 {[%clk 00:09:31]} {[%emt 00:00:03]} 42. Rh4
{[%clk 00:09:46]} {[%emt 00:00:08]} h5 {[%clk 00:09:35]} {[%emt 00:00:02]} 43.
Rb4 {[%clk 00:09:44]} {[%emt 00:00:07]} Bf2 {[%clk 00:09:30]} {[%emt 00:00:10]}
44. a5 {[%clk 00:09:39]} {[%emt 00:00:10]} Kc5 {[%clk 00:09:27]} {[%emt
00:00:08]} 45. Rb2 {[%clk 00:09:41]} {[%emt 00:00:03]} Bg1 {[%clk 00:09:24]}
{[%emt 00:00:08]} 46. a6 {[%clk 00:09:44]} {[%emt 00:00:03]} Kc6 {[%clk
00:09:28]} 47. Ke4 {[%clk 00:09:41]} {[%emt 00:00:08]} Ba7 {[%clk 00:09:27]}
{[%emt 00:00:07]} 48. Rb1 {[%clk 00:09:41]} {[%emt 00:00:04]} Bf2 {[%clk
00:09:24]} {[%emt 00:00:08]} 49. Ke5 {[%clk 00:09:44]} {[%emt 00:00:02]} g5
{[%clk 00:09:23]} {[%emt 00:00:07]} 50. Kf5 {[%clk 00:09:43]} {[%emt 00:00:06]}
Be3 {[%clk 00:09:27]} {[%emt 00:00:01]} 51. Rb3 {[%clk 00:09:45]} {[%emt
00:00:03]} Bd2 {[%clk 00:09:29]} {[%emt 00:00:03]} 52. a7 {[%clk 00:09:47]}
{[%emt 00:00:03]} 1-0

[Event "SS Manhem Chess Week 2019 Goteborg Open"]
[Site "Molnlycke kulturhus, Biblioteksgatan 2, Molnlycke, Sweden"]
[Date "2019.08.16"]
[Round "4.6"]
[White "Blomqvist, Erik"]
[Black "Andersson, Lars"]
[Result "1-0"]
[TimeControl "15 minutes + 5 seconds per move from move one (Round 1 - 4) / 90 minutes + 30 seconds per move from move one (Round 5 - 8)"]
[WhiteTitle "GM"]
[WhiteFideId "1709437"]
[BlackFideId "1706772"]
[WhiteElo "2507"]
[BlackElo "2003"]

1. e4 {[%clk 00:15:08]} {[%emt 00:00:02]} c6 {[%clk 00:15:09]} {[%emt
00:00:01]} 2. d4 {[%clk 00:15:10]} {[%emt 00:00:03]} d5 {[%clk 00:15:13]}
{[%emt 00:00:03]} 3. exd5 {[%clk 00:15:14]} cxd5 {[%clk 00:15:17]} 4. Bd3
{[%clk 00:15:18]} Nc6 {[%clk 00:15:18]} {[%emt 00:00:05]} 5. c3 {[%clk
00:15:22]} Qc7 {[%clk 00:15:20]} {[%emt 00:00:03]} 6. Ne2 {[%clk 00:15:25]}
{[%emt 00:00:02]} Bg4 {[%clk 00:15:22]} {[%emt 00:00:02]} 7. O-O {[%clk
00:15:25]} {[%emt 00:00:04]} Nf6 {[%clk 00:14:30]} {[%emt 00:00:57]} 8. Qe1
{[%clk 00:15:26]} {[%emt 00:00:04]} Bxe2 {[%clk 00:14:14]} {[%emt 00:00:21]} 9.
Qxe2 {[%clk 00:15:30]} {[%emt 00:00:02]} e6 {[%clk 00:14:17]} {[%emt 00:00:03]}
10. Bg5 {[%clk 00:15:25]} {[%emt 00:00:09]} Be7 {[%clk 00:14:19]} {[%emt
00:00:03]} 11. Nd2 {[%clk 00:15:27]} {[%emt 00:00:03]} O-O {[%clk 00:13:13]}
{[%emt 00:01:11]} 12. Nf3 {[%clk 00:15:30]} {[%emt 00:00:02]} Rac8 {[%clk
00:12:10]} {[%emt 00:01:08]} 13. Rfe1 {[%clk 00:15:31]} {[%emt 00:00:05]} Nd7
{[%clk 00:11:01]} {[%emt 00:01:14]} 14. Be3 {[%clk 00:15:25]} {[%emt 00:00:10]}
Bf6 {[%clk 00:10:43]} {[%emt 00:00:23]} 15. Rad1 {[%clk 00:15:23]} {[%emt
00:00:07]} Rfe8 {[%clk 00:10:23]} {[%emt 00:00:25]} 16. g3 {[%clk 00:14:30]}
{[%emt 00:00:58]} g6 {[%clk 00:09:33]} {[%emt 00:00:56]} 17. Bf4 {[%clk
00:14:10]} {[%emt 00:00:25]} Qb6 {[%clk 00:09:30]} {[%emt 00:00:09]} 18. Kg2
{[%clk 00:13:16]} {[%emt 00:00:59]} Bg7 {[%clk 00:09:28]} {[%emt 00:00:07]} 19.
h4 {[%clk 00:12:54]} {[%emt 00:00:26]} e5 {[%clk 00:07:30]} {[%emt 00:02:04]}
20. dxe5 {[%clk 00:12:57]} {[%emt 00:00:02]} Ndxe5 {[%clk 00:07:33]} {[%emt
00:00:02]} 21. h5 {[%clk 00:11:44]} {[%emt 00:01:18]} Re7 {[%clk 00:06:43]}
{[%emt 00:00:55]} 22. h6 {[%clk 00:11:42]} {[%emt 00:00:07]} Bh8 {[%clk
00:06:23]} {[%emt 00:00:25]} 23. Nxe5 {[%clk 00:10:36]} {[%emt 00:01:11]} Nxe5
{[%clk 00:06:13]} {[%emt 00:00:16]} 24. Bb5 {[%clk 00:08:31]} {[%emt 00:02:10]}
a6 {[%clk 00:05:51]} {[%emt 00:00:27]} 25. Ba4 {[%clk 00:08:34]} {[%emt
00:00:01]} Qe6 {[%clk 00:04:03]} {[%emt 00:01:53]} 26. Qd2 {[%clk 00:07:10]}
{[%emt 00:01:29]} 1-0

[Event "SS Manhem Chess Week 2019 Goteborg Open"]
[Site "Molnlycke kulturhus, Biblioteksgatan 2, Molnlycke, Sweden"]
[Date "2019.08.16"]
[Round "4.7"]
[White "Hector, Jonny"]
[Black "Eriksson, Kristian"]
[Result "1-0"]
[TimeControl "15 minutes + 5 seconds per move from move one (Round 1 - 4) / 90 minutes + 30 seconds per move from move one (Round 5 - 8)"]
[WhiteTitle "GM"]
[WhiteFideId "1700090"]
[BlackFideId "1705172"]
[WhiteElo "2493"]
[BlackElo "2113"]

1. e4 {[%clk 00:15:06]} {[%emt 00:00:03]} e5 {[%clk 00:15:02]} {[%emt
00:00:09]} 2. Nf3 {[%clk 00:15:08]} {[%emt 00:00:03]} Nc6 {[%clk 00:15:04]}
{[%emt 00:00:03]} 3. Bc4 {[%clk 00:15:09]} {[%emt 00:00:02]} Nf6 {[%clk
00:15:03]} {[%emt 00:00:06]} 4. Qe2 {[%clk 00:15:08]} {[%emt 00:00:07]} Be7
{[%clk 00:14:07]} {[%emt 00:01:02]} 5. d4 {[%clk 00:15:10]} {[%emt 00:00:03]}
d6 {[%clk 00:14:00]} {[%emt 00:00:11]} 6. dxe5 {[%clk 00:15:07]} {[%emt
00:00:07]} Nxe5 {[%clk 00:13:45]} {[%emt 00:00:21]} 7. Nxe5 {[%clk 00:15:03]}
{[%emt 00:00:09]} dxe5 {[%clk 00:13:47]} {[%emt 00:00:03]} 8. O-O {[%clk
00:14:59]} {[%emt 00:00:08]} O-O {[%clk 00:13:30]} {[%emt 00:00:23]} 9. Bg5
{[%clk 00:14:40]} {[%emt 00:00:23]} c6 {[%clk 00:12:52]} {[%emt 00:00:43]} 10.
Nd2 {[%clk 00:14:36]} {[%emt 00:00:09]} Qb6 {[%clk 00:11:57]} {[%emt 00:01:00]}
11. Bb3 {[%clk 00:14:33]} {[%emt 00:00:07]} Bg4 {[%clk 00:11:49]} {[%emt
00:00:13]} 12. Qe1 {[%clk 00:14:31]} {[%emt 00:00:07]} Rad8 {[%clk 00:11:09]}
{[%emt 00:00:46]} 13. Nc4 {[%clk 00:13:45]} {[%emt 00:00:51]} Qc7 {[%clk
00:11:05]} {[%emt 00:00:09]} 14. f4 {[%clk 00:13:03]} {[%emt 00:00:47]} exf4
{[%clk 00:10:13]} {[%emt 00:00:58]} 15. Bxf4 {[%clk 00:13:05]} {[%emt
00:00:02]} Qc8 {[%clk 00:10:14]} {[%emt 00:00:04]} 16. Bg5 {[%clk 00:12:35]}
{[%emt 00:00:34]} Rfe8 {[%clk 00:09:14]} {[%emt 00:01:06]} 17. e5 {[%clk
00:08:35]} {[%emt 00:04:04]} Nd5 {[%clk 00:08:06]} {[%emt 00:01:14]} 18. Qh4
{[%clk 00:07:21]} {[%emt 00:01:19]} Qe6 {[%clk 00:05:47]} {[%emt 00:02:25]} 19.
Bxe7 {[%clk 00:05:43]} {[%emt 00:01:42]} Rxe7 {[%clk 00:05:34]} {[%emt
00:00:19]} 20. Rae1 {[%clk 00:05:02]} {[%emt 00:00:45]} Bf5 {[%clk 00:04:48]}
{[%emt 00:00:51]} 21. Nd6 {[%clk 00:04:24]} {[%emt 00:00:43]} Bg6 {[%clk
00:04:09]} {[%emt 00:00:45]} 22. Nxb7 {[%clk 00:04:23]} {[%emt 00:00:06]} Rde8
{[%clk 00:02:57]} {[%emt 00:01:17]} 23. Nd6 {[%clk 00:04:19]} {[%emt 00:00:08]}
Rb8 {[%clk 00:02:37]} {[%emt 00:00:25]} 24. c4 {[%clk 00:04:08]} {[%emt
00:00:15]} Nb4 {[%clk 00:01:54]} {[%emt 00:00:49]} 25. c5 {[%clk 00:04:02]}
{[%emt 00:00:11]} Qd7 {[%clk 00:01:35]} {[%emt 00:00:24]} 26. Qd4 {[%clk
00:03:36]} {[%emt 00:00:30]} Nc2 {[%clk 00:01:07]} {[%emt 00:00:34]} 27. Bxc2
{[%clk 00:03:40]} {[%emt 00:00:02]} Bxc2 {[%clk 00:01:11]} {[%emt 00:00:02]} 28.
Rxf7 {[%clk 00:02:32]} {[%emt 00:01:12]} Rxf7 {[%clk 00:00:56]} {[%emt
00:00:20]} 29. e6 {[%clk 00:02:36]} Qc7 {[%clk 00:00:12]} {[%emt 00:00:50]} 30.
exf7+ {[%clk 00:02:32]} {[%emt 00:00:07]} 1-0

[Event "SS Manhem Chess Week 2019 Goteborg Open"]
[Site "Molnlycke kulturhus, Biblioteksgatan 2, Molnlycke, Sweden"]
[Date "2019.08.16"]
[Round "4.8"]
[White "Pettersson, Anders"]
[Black "Nilsson, Joakim"]
[Result "0-1"]
[TimeControl "15 minutes + 5 seconds per move from move one (Round 1 - 4) / 90 minutes + 30 seconds per move from move one (Round 5 - 8)"]
[BlackTitle "FM"]
[WhiteFideId "1715143"]
[BlackFideId "1723383"]
[WhiteElo "2104"]
[BlackElo "2319"]

1. d4 {[%clk 00:15:07]} {[%emt 00:01:25]} d5 {[%clk 00:15:08]} {[%emt
00:00:03]} 2. c4 {[%clk 00:15:11]} {[%emt 00:00:01]} e6 {[%clk 00:15:13]}
{[%emt 00:00:03]} 3. Nc3 {[%clk 00:15:14]} Be7 {[%clk 00:15:12]} {[%emt
00:00:07]} 4. Nf3 {[%clk 00:15:16]} {[%emt 00:00:01]} Nf6 {[%clk 00:15:16]}
{[%emt 00:00:02]} 5. Bg5 {[%clk 00:15:19]} {[%emt 00:00:01]} h6 {[%clk
00:15:20]} {[%emt 00:00:02]} 6. Bh4 {[%clk 00:14:07]} {[%emt 00:01:18]} O-O
{[%clk 00:15:23]} {[%emt 00:00:02]} 7. e3 {[%clk 00:14:11]} Ne4 {[%clk
00:15:17]} {[%emt 00:00:12]} 8. Bxe7 {[%clk 00:14:11]} {[%emt 00:00:05]} Qxe7
{[%clk 00:15:19]} {[%emt 00:00:03]} 9. Qb3 {[%clk 00:13:49]} {[%emt 00:00:26]}
c6 {[%clk 00:15:09]} {[%emt 00:00:16]} 10. Bd3 {[%clk 00:13:39]} {[%emt
00:00:15]} Nxc3 {[%clk 00:14:45]} {[%emt 00:00:29]} 11. Qxc3 {[%clk 00:13:41]}
{[%emt 00:00:02]} Nd7 {[%clk 00:14:48]} {[%emt 00:00:03]} 12. O-O {[%clk
00:13:39]} {[%emt 00:00:07]} Re8 {[%clk 00:14:50]} {[%emt 00:00:03]} 13. Rac1
{[%clk 00:13:21]} {[%emt 00:00:23]} dxc4 {[%clk 00:14:03]} {[%emt 00:00:53]} 14.
Bxc4 {[%clk 00:13:22]} {[%emt 00:00:03]} b6 {[%clk 00:13:10]} {[%emt 00:00:58]}
15. Ne5 {[%clk 00:10:55]} {[%emt 00:02:32]} Nxe5 {[%clk 00:12:54]} {[%emt
00:00:21]} 16. dxe5 {[%clk 00:10:58]} {[%emt 00:00:02]} Bb7 {[%clk 00:12:51]}
{[%emt 00:00:09]} 17. f4 {[%clk 00:10:38]} {[%emt 00:00:25]} c5 {[%clk
00:11:19]} {[%emt 00:01:37]} 18. Be2 {[%clk 00:09:36]} {[%emt 00:01:06]} Red8
{[%clk 00:10:41]} {[%emt 00:00:44]} 19. Rcd1 {[%clk 00:09:40]} Rxd1 {[%clk
00:10:41]} {[%emt 00:00:05]} 20. Rxd1 {[%clk 00:09:40]} {[%emt 00:00:04]} Rd8
{[%clk 00:10:43]} {[%emt 00:00:03]} 21. Qc2 {[%clk 00:08:58]} {[%emt 00:00:47]}
Qc7 {[%clk 00:08:16]} {[%emt 00:02:32]} 22. Rd2 {[%clk 00:08:41]} {[%emt
00:00:22]} Rd7 {[%clk 00:06:34]} {[%emt 00:01:47]} 23. Qd1 {[%clk 00:08:37]}
{[%emt 00:00:09]} Bc6 {[%clk 00:06:37]} {[%emt 00:00:02]} 24. Kf2 {[%clk
00:07:55]} {[%emt 00:00:47]} Kf8 {[%clk 00:06:31]} {[%emt 00:00:12]} 25. Bf3
{[%clk 00:07:01]} {[%emt 00:00:58]} Ke7 {[%clk 00:06:02]} {[%emt 00:00:35]} 26.
Rxd7+ {[%clk 00:05:27]} {[%emt 00:01:39]} Qxd7 {[%clk 00:05:59]} {[%emt
00:00:08]} 27. Qxd7+ {[%clk 00:05:23]} {[%emt 00:00:09]} Kxd7 {[%clk 00:05:59]}
{[%emt 00:00:05]} 28. e4 {[%clk 00:05:20]} {[%emt 00:00:08]} Bb5 {[%clk
00:05:47]} {[%emt 00:00:17]} 29. Ke3 {[%clk 00:05:19]} {[%emt 00:00:05]} Bc4
{[%clk 00:05:25]} {[%emt 00:00:27]} 30. a3 {[%clk 00:05:20]} {[%emt 00:00:05]}
b5 {[%clk 00:05:16]} {[%emt 00:00:14]} 31. f5 {[%clk 00:05:16]} {[%emt
00:00:09]} g6 {[%clk 00:04:38]} {[%emt 00:00:43]} 32. g4 {[%clk 00:05:14]}
{[%emt 00:00:07]} g5 {[%clk 00:04:37]} {[%emt 00:00:06]} 33. Kd2 {[%clk
00:04:24]} {[%emt 00:00:55]} a5 {[%clk 00:04:26]} {[%emt 00:00:16]} 34. Kc3
{[%clk 00:04:26]} {[%emt 00:00:03]} Bf1 {[%clk 00:04:23]} {[%emt 00:00:07]} 35.
b4 {[%clk 00:03:27]} {[%emt 00:01:04]} cxb4+ {[%clk 00:03:43]} {[%emt
00:00:46]} 36. axb4 {[%clk 00:03:30]} {[%emt 00:00:01]} a4 {[%clk 00:03:47]}
{[%emt 00:00:02]} 37. Kb2 {[%clk 00:03:27]} {[%emt 00:00:08]} Bc4 {[%clk
00:02:58]} {[%emt 00:00:53]} 38. Ka3 {[%clk 00:03:30]} {[%emt 00:00:02]} Ke7
{[%clk 00:02:46]} {[%emt 00:00:17]} 39. Kb2 {[%clk 00:03:19]} {[%emt 00:00:16]}
f6 {[%clk 00:02:17]} {[%emt 00:00:34]} 40. Ka3 {[%clk 00:02:15]} {[%emt
00:01:09]} exf5 {[%clk 00:01:10]} {[%emt 00:01:12]} 41. exf5 {[%clk 00:01:08]}
{[%emt 00:01:11]} fxe5 {[%clk 00:01:07]} {[%emt 00:00:08]} 42. Bc6 {[%clk
00:00:42]} {[%emt 00:00:31]} Bd3 {[%clk 00:00:38]} {[%emt 00:00:35]} 43. Bd5
{[%clk 00:00:20]} {[%emt 00:00:27]} e4 {[%clk 00:00:28]} {[%emt 00:00:15]} 44.
Kb2 {[%clk 00:00:25]} e3 {[%clk 00:00:15]} {[%emt 00:00:18]} 45. Kc3 {[%clk
00:00:23]} {[%emt 00:00:07]} Bf1 {[%clk 00:00:14]} {[%emt 00:00:07]} 46. Ba2
{[%clk 00:00:14]} {[%emt 00:00:14]} Kf6 {[%clk 00:00:16]} {[%emt 00:00:02]} 47.
Bg8 {[%clk 00:00:12]} {[%emt 00:00:06]} a3 {[%clk 00:00:18]} {[%emt 00:00:04]}
48. Ba2 {[%clk 00:00:16]} Bc4 {[%clk 00:00:21]} {[%emt 00:00:02]} 49. Bxc4
{[%clk 00:00:16]} {[%emt 00:00:05]} bxc4 {[%clk 00:00:25]} 50. b5 {[%clk
00:00:21]} e2 {[%clk 00:00:29]} {[%emt 00:00:02]} 51. Kd2 {[%clk 00:00:25]} a2
{[%clk 00:00:33]} 0-1

[Event "SS Manhem Chess Week 2019 Goteborg Open"]
[Site "Molnlycke kulturhus, Biblioteksgatan 2, Molnlycke, Sweden"]
[Date "2019.08.16"]
[Round "4.9"]
[White "Rydstrom, Tom"]
[Black "Troedsson, Anton"]
[Result "1-0"]
[TimeControl "15 minutes + 5 seconds per move from move one (Round 1 - 4) / 90 minutes + 30 seconds per move from move one (Round 5 - 8)"]
[WhiteTitle "FM"]
[WhiteFideId "1714830"]
[BlackFideId "1746006"]
[WhiteElo "2314"]
[BlackElo "2045"]

1. e4 {[%clk 00:15:09]} {[%emt 00:00:02]} c6 {[%clk 00:15:07]} {[%emt
00:00:02]} 2. d4 {[%clk 00:15:09]} {[%emt 00:00:05]} d5 {[%clk 00:15:10]} 3. e5
{[%clk 00:15:00]} {[%emt 00:00:15]} Bf5 {[%clk 00:15:13]} {[%emt 00:00:02]} 4.
Nc3 {[%clk 00:15:02]} {[%emt 00:00:04]} e6 {[%clk 00:15:12]} {[%emt 00:00:06]}
5. g4 {[%clk 00:15:05]} {[%emt 00:00:02]} Bg6 {[%clk 00:15:15]} {[%emt
00:00:02]} 6. Nge2 {[%clk 00:15:09]} {[%emt 00:00:02]} Nd7 {[%clk 00:15:03]}
{[%emt 00:00:16]} 7. Nf4 {[%clk 00:14:59]} {[%emt 00:00:15]} c5 {[%clk
00:15:05]} {[%emt 00:00:03]} 8. Bb5 {[%clk 00:14:07]} {[%emt 00:00:57]} cxd4
{[%clk 00:14:59]} {[%emt 00:00:11]} 9. Qxd4 {[%clk 00:14:11]} {[%emt 00:00:01]}
a6 {[%clk 00:14:51]} {[%emt 00:00:13]} 10. Bxd7+ {[%clk 00:14:11]} {[%emt
00:00:05]} Qxd7 {[%clk 00:14:54]} {[%emt 00:00:01]} 11. Be3 {[%clk 00:13:32]}
{[%emt 00:00:44]} Rc8 {[%clk 00:14:50]} {[%emt 00:00:10]} 12. O-O-O {[%clk
00:11:30]} {[%emt 00:02:07]} b5 {[%clk 00:14:14]} {[%emt 00:00:41]} 13. a3
{[%clk 00:11:05]} {[%emt 00:00:30]} a5 {[%clk 00:13:29]} {[%emt 00:00:50]} 14.
Nxg6 {[%clk 00:10:53]} {[%emt 00:00:17]} hxg6 {[%clk 00:13:33]} {[%emt
00:00:02]} 15. Qd3 {[%clk 00:08:18]} {[%emt 00:02:40]} Rc4 {[%clk 00:13:01]}
{[%emt 00:00:36]} 16. Bd4 {[%clk 00:07:03]} {[%emt 00:01:21]} Nh6 {[%clk
00:10:22]} {[%emt 00:02:43]} 17. f3 {[%clk 00:06:59]} {[%emt 00:00:09]} Be7
{[%clk 00:10:18]} {[%emt 00:00:08]} 18. h4 {[%clk 00:07:02]} {[%emt 00:00:03]}
Qb7 {[%clk 00:10:00]} {[%emt 00:00:22]} 19. Kb1 {[%clk 00:06:47]} {[%emt
00:00:20]} b4 {[%clk 00:09:52]} {[%emt 00:00:13]} 20. axb4 {[%clk 00:06:51]}
Rxb4 {[%clk 00:09:37]} {[%emt 00:00:20]} 21. Ne2 {[%clk 00:05:36]} {[%emt
00:01:20]} a4 {[%clk 00:09:23]} {[%emt 00:00:19]} 22. Bc3 {[%clk 00:05:02]}
{[%emt 00:00:39]} Rb6 {[%clk 00:09:17]} {[%emt 00:00:11]} 23. Bd4 {[%clk
00:05:00]} {[%emt 00:00:07]} Rb4 {[%clk 00:09:20]} {[%emt 00:00:03]} 24. h5
{[%clk 00:04:52]} {[%emt 00:00:13]} g5 {[%clk 00:09:19]} {[%emt 00:00:05]} 25.
Rhg1 {[%clk 00:04:47]} {[%emt 00:00:09]} Kd7 {[%clk 00:08:18]} {[%emt
00:01:06]} 26. Bc3 {[%clk 00:03:22]} {[%emt 00:01:31]} Rb6 {[%clk 00:08:11]}
{[%emt 00:00:12]} 27. Qd4 {[%clk 00:02:44]} {[%emt 00:00:43]} Ra8 {[%clk
00:08:05]} {[%emt 00:00:11]} 28. Rgf1 {[%clk 00:02:15]} {[%emt 00:00:34]} Rb5
{[%clk 00:06:57]} {[%emt 00:01:14]} 29. f4 {[%clk 00:01:30]} {[%emt 00:00:49]}
Bc5 {[%clk 00:06:08]} {[%emt 00:00:54]} 30. Qd3 {[%clk 00:01:13]} {[%emt
00:00:21]} Nxg4 {[%clk 00:06:02]} {[%emt 00:00:12]} 31. fxg5 {[%clk 00:01:15]}
{[%emt 00:00:03]} Ke8 {[%clk 00:05:43]} {[%emt 00:00:25]} 32. g6 {[%clk
00:01:05]} {[%emt 00:00:16]} f5 {[%clk 00:05:31]} {[%emt 00:00:16]} 33. exf6
{[%clk 00:01:08]} {[%emt 00:00:02]} Nxf6 {[%clk 00:05:34]} {[%emt 00:00:02]} 34.
Rxf6 {[%clk 00:00:57]} {[%emt 00:00:17]} gxf6 {[%clk 00:05:35]} {[%emt
00:00:04]} 35. g7 {[%clk 00:01:01]} Rxb2+ {[%clk 00:05:26]} {[%emt 00:00:15]}
36. Bxb2 {[%clk 00:01:00]} {[%emt 00:00:06]} a3 {[%clk 00:05:07]} {[%emt
00:00:24]} 37. g8=Q+ {[%clk 00:01:04]} {[%emt 00:00:01]} Bf8 {[%clk 00:05:11]}
38. Qxe6+ {[%emt 00:00:02]} 1-0